bitfinex/quotes_ETHUSD_20241009
["timestamp","ask_amount","ask_price","bid_price","bid_amount"]
[1728447325209,0.30496977,2446.5,2446.4,3.0]
[1728447325406,1.3637147,2446.5,2446.0,4.08821]
[1728447325710,1.91278806,2446.4,2446.1,1.73297935]
[1728447325997,0.30488379,2446.3,2446.1,1.73297935]
[1728447326361,0.85404313,2446.4,2446.2,4.08796]
[1728447326562,0.30481056,2446.3,2446.2,4.08796]
[1728447327000,0.30481056,2446.3,2446.1,4.73297935]
[1728447327203,0.85404313,2446.4,2446.1,4.73297935]
[1728447327204,0.30481056,2446.2,2446.1,4.73297935]
[1728447328266,0.30481056,2446.2,2446.1,8.82111935]
[1728447328769,0.30467419,2446.2,2446.1,8.82111935]
[1728447330313,0.30467419,2446.2,2446.1,4.73297935]
[1728447330809,0.30467419,2446.2,2446.1,8.82111935]
[1728447331774,0.30467419,2446.2,2446.1,4.73297935]
[1728447332093,0.30467419,2446.2,2446.0,4.08821]
[1728447332094,0.30452799,2446.2,2446.0,4.08821]
[1728447332296,0.30452799,2446.2,2445.7,1.6127]
[1728447332609,0.85404313,2446.2,2445.8,3.0]
[1728447332810,0.30444566,2446.1,2445.8,3.0]
[1728447333142,0.30444566,2446.0,2445.8,3.0]
[1728447333292,0.85404313,2446.2,2445.8,3.0]
[1728447333598,0.30432785,2446.1,2445.8,3.0]
[1728447333804,0.30432785,2446.0,2445.8,3.0]
[1728447334109,0.85404313,2446.1,2445.7,3.0]
[1728447334281,0.85883395,2446.0,2445.7,3.0]
[1728447334481,1.40854313,2446.0,2445.6,5.82185935]
[1728447334671,0.30422165,2445.9,2445.6,5.82185935]
[1728447334867,0.5545,2445.7,2445.2,4.29580285]
[1728447335106,0.5545,2445.7,2445.2,10.1183222]
[1728447335513,0.30422266,2445.6,2445.2,10.1183222]
[1728447335670,0.5545,2445.7,2445.3,3.0]
[1728447335869,0.5545,2445.7,2445.3,7.08945]
[1728447336172,0.5545,2445.7,2445.4,5.82218935]
[1728447336585,0.5545,2445.7,2445.3,4.08946]
[1728447336800,0.5545,2445.7,2445.2,8.17908]
[1728447337033,0.5545,2445.7,2445.3,4.08943]
[1728447337396,0.5545,2445.7,2445.2,4.08954]
[1728447337608,0.5545,2445.7,2445.2,8.17908]
[1728447338334,0.5545,2445.7,2445.2,4.08954]
[1728447341218,0.5545,2445.7,2445.2,8.17909]
[1728447341411,0.5545,2445.7,2445.2,4.08954]
[1728447341632,0.5545,2445.7,2445.4,4.0892]
[1728447342616,0.5545,2445.7,2445.3,1.73297935]
[1728447343234,0.5545,2445.7,2445.2,4.09522]
[1728447343444,0.5545,2445.7,2445.2,8.18476]
[1728447343739,0.5545,2445.7,2445.3,4.08945]
[1728447344443,0.5545,2445.7,2445.2,4.09522]
[1728447344663,4.64333,2445.7,2445.2,4.09522]
[1728447346845,0.5545,2445.7,2445.2,4.09522]
[1728447348315,0.5545,2445.7,2445.3,4.08947]
[1728447348918,0.5545,2445.7,2445.2,4.09522]
[1728447349146,0.5545,2445.7,2445.2,8.18475]
[1728447349510,0.5545,2445.7,2445.2,4.09522]
[1728447349716,0.5545,2445.7,2445.2,8.18477]
[1728447350026,0.5545,2445.7,2445.2,4.09522]
[1728447350407,0.5545,2445.7,2445.2,8.18477]
[1728447352336,0.5545,2445.7,2445.2,4.09522]
[1728447352554,0.5545,2445.7,2445.3,4.08943]
[1728447352704,0.5545,2445.7,2445.4,4.08926]
[1728447357138,0.5545,2445.7,2445.2,8.18477]
[1728447357504,0.5545,2445.7,2445.2,4.09522]
[1728447357711,0.5545,2445.7,2445.3,4.08945]
[1728447359239,0.5545,2445.7,2445.2,4.09522]
[1728447359952,0.5545,2445.7,2445.2,8.18476]
[1728447360736,0.5545,2445.7,2445.3,4.08947]
[1728447360932,0.5545,2445.7,2445.2,4.09522]
[1728447361136,4.64335,2445.7,2445.2,4.09522]
[1728447361352,0.5545,2445.7,2445.2,4.09522]
[1728447361545,0.5545,2445.7,2445.3,4.08946]
[1728447362514,0.5545,2445.7,2445.2,4.09522]
[1728447362723,0.5545,2445.7,2445.2,8.18474]
[1728447362937,0.5545,2445.7,2445.2,8.18475]
[1728447364425,0.5545,2445.7,2445.2,4.09522]
[1728447364827,0.5545,2445.7,2445.2,8.18474]
[1728447366157,0.5545,2445.7,2445.2,4.09522]
[1728447367052,0.5545,2445.7,2445.2,8.18475]
[1728447367459,0.5545,2445.7,2445.2,4.09522]
[1728447367671,1.26634313,2446.0,2445.5,1.73297935]
[1728447367961,1.26634313,2446.0,2445.7,5.82167935]
[1728447367962,0.4123,2446.0,2445.7,5.82167935]
[1728447368813,0.4123,2446.2,2445.9,1.73297935]
[1728447369118,0.4123,2446.2,2445.7,5.82166935]
[1728447369312,0.4123,2446.2,2445.8,4.08863]
[1728447369712,0.4123,2446.2,2445.7,5.82166935]
[1728447369713,4.50028,2446.2,2445.7,5.82166935]
[1728447370143,0.4123,2446.2,2445.7,5.82166935]
[1728447370319,4.50028,2446.2,2445.7,5.82166935]
[1728447370708,0.4123,2446.2,2445.7,9.91036935]
[1728447371328,0.30382808,2446.1,2445.7,9.91036935]
[1728447371522,0.4123,2446.2,2445.7,9.91036935]
[1728447371717,0.30381873,2446.1,2445.7,9.91036935]
[1728447371918,5.35432313,2446.2,2445.7,4.08869]
[1728447372144,0.30382164,2446.1,2445.7,4.08869]
[1728447372314,1.26634313,2446.2,2445.7,4.08869]
[1728447372515,0.30390217,2446.1,2445.7,4.08869]
[1728447372721,1.26634313,2446.2,2445.7,4.08869]
[1728447372950,0.30392602,2446.1,2445.7,4.08869]
[1728447373623,1.15796915,2446.1,2445.7,4.08869]
[1728447374058,0.30392602,2446.0,2445.7,4.08869]
[1728447374212,0.30392602,2446.0,2445.7,8.1774]
[1728447374911,0.30392602,2446.0,2445.8,4.08861]
[1728447375836,0.30392602,2446.0,2445.9,4.08847]
[1728447376242,1.26634313,2446.2,2446.0,4.08829]
[1728447376514,0.30419846,2446.1,2446.0,4.08829]
[1728447377147,1.26634313,2446.2,2446.0,4.08829]
[1728447377457,0.3041871,2446.1,2446.0,4.08829]
[1728447377964,0.3041871,2446.1,2445.8,7.34969935]
[1728447378269,0.3041871,2446.1,2445.8,11.43824935]
[1728447378423,0.3041871,2446.1,2445.8,8.17717]
[1728447378630,0.30423229,2446.1,2445.8,8.17717]
[1728447378956,1.15827542,2446.1,2445.8,4.08855]
[1728447379164,0.30423229,2446.0,2445.8,4.08855]
[1728447379530,0.30423229,2446.0,2445.8,8.1771]
[1728447379733,0.30423229,2446.0,2445.7,4.08878]
[1728447379963,0.30423229,2446.0,2445.6,4.29015716]
[1728447379964,0.30423229,2446.0,2445.6,5.82190935]
[1728447380149,0.4123,2445.9,2445.6,5.82190935]
[1728447380556,0.30427527,2445.8,2445.6,5.82190935]
[1728447380765,0.4123,2445.9,2445.6,5.82190935]
[1728447381354,0.4123,2445.9,2445.6,11.08343501]
[1728447381668,1.26634313,2446.2,2445.9,4.08847]
[1728447381869,0.30423472,2446.1,2445.9,4.08847]
[1728447382064,0.30423472,2446.0,2445.9,5.61957]
[1728447382277,0.30423472,2446.0,2445.9,6.76368493]
[1728447382476,0.85404313,2446.2,2446.0,4.08819]
[1728447382692,0.85404313,2446.3,2446.1,4.08814]
[1728447382893,0.30418499,2446.2,2446.0,5.82116935]
[1728447383043,0.30418764,2446.2,2446.0,5.82116935]
[1728447383378,2.13247109,2446.4,2446.1,4.08814]
[1728447383541,0.85404313,2446.7,2446.3,5.82077935]
[1728447383741,0.85404313,2446.6,2446.5,1.73297935]
[1728447383992,0.85404313,2446.7,2446.5,1.73297935]
[1728447384152,1.69072796,2446.8,2446.5,1.73297935]
[1728447384153,0.30417434,2446.6,2446.5,1.73297935]
[1728447384577,0.85404313,2446.8,2446.5,1.73297935]
[1728447384778,0.30404745,2446.7,2446.5,1.73297935]
[1728447385088,0.30404386,2446.6,2446.5,6.40250729]
[1728447385391,0.85404313,2446.9,2446.6,4.08721]
[1728447385593,0.30390529,2446.8,2446.6,4.08721]
[1728447385801,1.26634313,2447.0,2446.6,4.08721]
[1728447385972,0.30390776,2446.9,2446.6,4.08721]
[1728447386166,1.26634313,2447.0,2446.6,4.08721]
[1728447386371,0.30378913,2446.9,2446.7,5.81998935]
[1728447386583,5.78987746,2447.3,2446.7,6.61241408]
[1728447386584,5.35265313,2447.2,2446.7,6.61241408]
[1728447386769,0.3037621,2447.1,2446.7,5.81998935]
[1728447387093,0.3037621,2447.0,2446.7,5.81998935]
[1728447387300,1.26634313,2447.2,2446.7,5.81998935]
[1728447387462,0.30362957,2447.1,2446.7,5.81998935]
[1728447387680,1.26634313,2447.2,2446.7,5.81998935]
[1728447388006,0.30362369,2447.1,2446.7,5.81998935]
[1728447388159,1.26634313,2447.2,2446.7,9.90701935]
[1728447388365,0.3035052,2447.1,2446.7,5.81998935]
[1728447388596,0.4123,2447.2,2446.7,5.81998935]
[1728447388773,0.30352403,2447.1,2446.7,5.81998935]
[1728447388976,5.35254313,2447.3,2446.7,5.81998935]
[1728447389196,0.30352014,2447.2,2446.7,5.81998935]
[1728447389373,5.35254313,2447.3,2446.7,6.96294729]
[1728447389572,0.30340628,2447.2,2446.7,6.96294729]
[1728447389802,5.35254313,2447.3,2446.7,6.96294729]
[1728447390105,0.30340608,2447.2,2446.7,11.04997729]
[1728447390261,4.4985,2447.3,2446.7,11.04997729]
[1728447390465,0.30332011,2447.2,2446.7,11.04997729]
[1728447390708,0.4123,2447.3,2446.9,5.81975935]
[1728447391493,5.35224313,2447.5,2446.9,5.81975935]
[1728447391700,4.38921806,2447.4,2447.0,1.6179]
[1728447391998,0.30323806,2447.3,2447.0,1.6179]
[1728447392297,4.08598,2447.4,2446.9,1.73297935]
[1728447392812,4.08598,2447.4,2446.8,2.87511773]
[1728447393659,4.08598,2447.4,2446.8,6.96207773]
[1728447394506,5.35224313,2447.5,2446.9,4.08679]
[1728447394708,4.4982,2447.5,2446.9,7.09795906]
[1728447395591,8.58409,2447.5,2446.9,7.09795906]
[1728447396532,4.086,2447.4,2446.9,7.09795906]
[1728447397637,4.49819,2447.5,2446.9,7.09795906]
[1728447397995,8.58414,2447.5,2446.9,7.09795906]
[1728447398415,4.08598,2447.4,2446.9,7.09795906]
[1728447398626,4.08598,2447.4,2447.0,0.55433893]
[1728447398806,4.08617,2447.3,2446.9,3.01116906]
[1728447399394,4.08617,2447.3,2446.9,1.27818971]
[1728447402365,4.49819,2447.5,2446.9,1.27818971]
[1728447402554,4.08601,2447.4,2446.9,5.36498971]
[1728447403465,4.08601,2447.4,2446.9,4.0868]
[1728447403825,4.08615,2447.3,2446.8,1.6179]
[1728447407255,4.08615,2447.3,2446.8,5.70486]
[1728447409086,5.35223313,2447.5,2446.8,5.70486]
[1728447409288,0.30307798,2447.4,2446.8,5.70486]
[1728447409490,4.08598,2447.4,2446.8,5.70486]
[1728447409669,9.43813313,2447.5,2446.9,4.08677]
[1728447409856,0.3031881,2447.4,2446.9,4.08677]
[1728447410190,4.08598,2447.4,2446.9,4.08677]
[1728447410389,9.43814313,2447.5,2446.9,4.08677]
[1728447410554,0.30324466,2447.4,2446.9,5.81974935]
[1728447410753,5.35223313,2447.5,2446.9,6.97221229]
[1728447410975,9.43816313,2447.5,2446.9,6.97221229]
[1728447411299,0.30323857,2447.4,2447.0,5.65672]
[1728447411585,4.93993313,2447.5,2447.0,5.65672]
[1728447411777,0.30330435,2447.4,2447.0,5.65672]
[1728447411983,4.93993313,2447.5,2447.0,6.91960523]
[1728447412177,0.30330326,2447.4,2447.0,6.91960523]
[1728447412367,9.02584313,2447.5,2447.0,2.83298523]
[1728447412569,2.21111849,2447.4,2447.0,2.83298523]
[1728447412779,0.30339138,2447.3,2447.0,2.83298523]
[1728447413096,9.02582313,2447.5,2447.0,2.83298523]
[1728447413281,0.30337759,2447.4,2447.0,2.83298523]
[1728447413594,0.30337759,2447.3,2447.0,2.83298523]
[1728447413955,0.85404313,2447.4,2447.0,2.83298523]
[1728447414464,0.85404313,2447.4,2446.7,4.08704]
[1728447414465,5.85626622,2447.3,2446.8,1.5794]
[1728447414776,0.30346766,2447.2,2446.8,5.66636]
[1728447416294,4.08615,2447.3,2446.8,5.66636]
[1728447416606,0.30353057,2447.2,2446.8,6.72955944]
[1728447416909,4.94019313,2447.3,2446.8,6.72955944]
[1728447417206,0.30347991,2447.2,2446.8,6.72955944]
[1728447417771,4.94019313,2447.3,2446.8,6.72955944]
[1728447418192,0.30352246,2447.2,2446.8,6.72955944]
[1728447418377,4.94019313,2447.3,2446.9,1.08165994]
[1728447418590,0.30356851,2447.2,2446.9,1.08165994]
[1728447418789,4.94019313,2447.3,2446.9,1.08165994]
[1728447418979,0.30356666,2447.2,2446.9,1.08165994]
[1728447419181,4.94019313,2447.3,2446.9,1.08165994]
[1728447419382,0.30362832,2447.2,2446.9,1.08165994]
[1728447419592,4.94018313,2447.3,2446.9,1.08165994]
[1728447419771,0.3036284,2447.2,2446.9,1.08165994]
[1728447419973,0.3036284,2447.1,2446.9,1.08165994]
[1728447420175,4.94018313,2447.3,2446.9,1.08165994]
[1728447420401,0.30367922,2447.2,2446.8,5.66636]
[1728447420587,0.30367795,2447.1,2446.8,5.66636]
[1728447420900,4.94018313,2447.3,2446.8,5.66636]
[1728447421114,0.30367315,2447.2,2446.8,5.66636]
[1728447421281,0.30367315,2447.1,2446.8,6.81499794]
[1728447421602,0.85404313,2447.2,2446.8,2.72803794]
[1728447421806,0.30374287,2447.1,2446.9,4.08677]
[1728447421971,0.85404313,2447.3,2446.9,4.08677]
[1728447422314,0.30374482,2447.2,2446.9,4.08677]
[1728447422610,0.30374482,2447.1,2447.0,1.5257]
[1728447423026,0.30374482,2447.2,2447.0,1.5257]
[1728447423217,0.30374482,2447.1,2447.0,7.34521935]
[1728447423724,0.85404313,2447.4,2447.0,7.34521935]
[1728447423929,0.30389696,2447.3,2447.0,7.34521935]
[1728447424231,0.85404313,2447.4,2447.0,7.34521935]
[1728447424232,0.85404313,2447.4,2447.1,1.14319194]
[1728447424432,0.30388545,2447.3,2447.1,1.14319194]
[1728447424626,0.85404313,2447.4,2447.2,1.5443]
[1728447424815,0.30383577,2447.3,2447.2,1.5443]
[1728447425001,0.30383577,2447.3,2447.2,3.27727935]
[1728447425193,0.30383577,2447.3,2447.2,4.53660448]
[1728447425742,0.30383577,2447.3,2447.2,8.62290448]
[1728447426026,0.85404313,2447.5,2447.3,5.62163]
[1728447426193,1.27842796,2447.7,2447.3,5.62163]
[1728447426194,0.30393253,2447.4,2447.3,5.62163]
[1728447427327,0.30393253,2447.4,2447.3,6.91200817]
[1728447427490,1.15797566,2447.4,2447.3,2.82597817]
[1728447427696,2.21468015,2447.4,2447.3,2.82597817]
[1728447427930,2.21467859,2447.4,2447.3,2.82597817]
[1728447428311,0.30393253,2447.4,2447.3,2.82597817]
[1728447428504,1.15797566,2447.4,2447.3,2.82597817]
[1728447428913,2.2151124,2447.4,2447.3,2.82597817]
[1728447429122,1.91117987,2447.4,2447.3,2.82597817]
[1728447429521,2.21566528,2447.4,2447.3,2.82597817]
[1728447430246,1.91117987,2447.4,2447.3,2.82597817]
[1728447430600,2.21568524,2447.4,2447.3,2.82597817]
[1728447431142,2.21569265,2447.4,2447.3,2.82597817]
[1728447431553,1.36164952,2447.4,2447.3,1.5356]
[1728447431766,2.64007748,2447.4,2447.3,1.5356]
[1728447432151,1.36164952,2447.4,2447.3,1.5356]
[1728447432476,2.64007748,2447.4,2447.3,1.5356]
[1728447432764,2.64007748,2447.4,2447.0,5.66882]
[1728447432941,0.85251934,2447.2,2447.0,6.644396]
[1728447433143,0.30451278,2447.1,2447.0,7.194396]
[1728447434369,0.85251934,2447.2,2447.0,7.194396]
[1728447434674,0.30448005,2447.1,2447.0,7.194396]
[1728447437581,0.85251934,2447.3,2447.0,7.194396]
[1728447437787,0.30453273,2447.1,2447.0,7.194396]
[1728447438074,0.60906567,2447.1,2447.0,7.194396]
[1728447440251,0.30453294,2447.1,2447.0,8.92737535]
[1728447440984,0.85251934,2447.3,2447.0,8.92737535]
[1728447441278,0.85251934,2447.3,2447.2,4.0863]
[1728447441642,1.15704848,2447.3,2447.2,4.0863]
[1728447441845,1.15704848,2447.3,2447.1,4.08645]
[1728447442045,0.30452914,2447.2,2447.1,4.08645]
[1728447443405,0.30452914,2447.2,2447.1,5.40870076]
[1728447446163,0.30451314,2447.2,2447.1,5.40871076]
[1728447447557,0.30451314,2447.2,2447.1,10.56941076]
[1728447447761,0.85251934,2447.5,2447.4,5.69666]
[1728447448088,0.85251934,2447.6,2447.5,4.0858]
[1728447448465,1.15703792,2447.6,2447.5,4.0858]
[1728447451019,1.15703792,2447.6,2447.5,6.97034029]
[1728447451521,0.30451881,2447.6,2447.5,7.52034029]
[1728447452508,0.30451881,2447.6,2447.5,1.15156094]
[1728447452702,0.30451881,2447.6,2447.4,11.51550935]
[1728447452703,1.15703815,2447.6,2447.4,7.42955935]
[1728447453013,0.30451881,2447.5,2447.4,7.42955935]
[1728447453607,0.30451881,2447.5,2447.4,5.81885935]
[1728447461579,0.30461052,2447.5,2447.4,5.81885935]
[1728447462007,0.30461052,2447.6,2447.4,1.73297935]
[1728447462231,0.30461052,2447.5,2447.4,5.81893935]
[1728447462388,0.30461052,2447.6,2447.4,5.81893935]
[1728447462585,0.30461052,2447.5,2447.4,5.81893935]
[1728447462919,0.30464666,2447.5,2447.4,8.51796529]
[1728447463085,0.30464666,2447.6,2447.4,8.51796529]
[1728447463285,0.30464666,2447.5,2447.4,8.51796529]
[1728447463481,0.85251934,2447.7,2447.5,4.0858]
[1728447463721,0.30466975,2447.6,2447.5,4.0858]
[1728447465785,0.30466975,2447.6,2447.5,5.23191394]
[1728447466096,0.30466975,2447.6,2447.5,5.78191394]
[1728447468287,0.85251934,2447.8,2447.6,4.08551]
[1728447468483,0.85251934,2447.8,2447.7,4.08546]
[1728447469230,1.15729104,2447.8,2447.7,4.08546]
[1728447469525,1.15729104,2447.8,2447.6,4.08558]
[1728447469731,0.3047717,2447.7,2447.6,4.08558]
[1728447473721,0.3047717,2447.7,2447.6,5.23165594]
[1728447474098,0.30474511,2447.7,2447.6,5.23165594]
[1728447475151,0.85251934,2447.9,2447.6,5.23165594]
[1728447475325,0.85251934,2447.9,2447.7,4.08538]
[1728447475524,0.3047128,2447.8,2447.7,4.08546]
[1728447478757,0.6093666,2447.8,2447.7,4.08546]
[1728447478959,0.3046538,2447.8,2447.7,4.08546]
[1728447481276,1.15717314,2447.8,2447.7,4.08546]
[1728447482032,0.3046538,2447.8,2447.7,4.08546]
[1728447483475,1.15717314,2447.8,2447.7,4.08546]
[1728447484036,1.15717314,2447.8,2447.7,5.63686]
[1728447485068,0.3046538,2447.8,2447.7,5.63686]
[1728447485276,1.15717314,2447.8,2447.7,5.63686]
[1728447485571,1.15717314,2447.8,2447.7,6.91731556]
[1728447485734,0.3046538,2447.8,2447.7,6.91731556]
[1728447486170,1.15717314,2447.8,2447.7,6.91731556]
[1728447487437,0.85251934,2447.8,2447.7,6.91731556]
[1728447487634,1.15730202,2447.8,2447.7,6.91731556]
[1728447489577,0.30478268,2447.8,2447.7,6.91731556]
[1728447491269,1.15730202,2447.8,2447.7,6.91731556]
[1728447494336,0.85251934,2447.8,2447.7,6.91731556]
[1728447494496,1.15763498,2447.8,2447.7,6.91731556]
[1728447501510,1.15763498,2447.8,2447.7,5.63686]
[1728447501511,2.43606294,2447.8,2447.7,5.63686]
[1728447501711,0.71021564,2447.8,2447.6,4.28859032]
[1728447501956,1.5835436,2447.7,2447.4,4.08586]
[1728447502243,0.85479732,2447.5,2447.4,7.08586]
[1728447502446,1.15991296,2447.5,2447.4,7.08586]
[1728447507581,0.85479732,2447.5,2447.4,7.08586]
[1728447508176,1.16008771,2447.5,2447.4,7.08586]
[1728447510000,1.16008771,2447.5,2447.4,3.0]
[1728447510200,1.56518771,2447.5,2447.4,3.0]
[1728447510529,1.56518771,2447.5,2447.3,4.08604]
[1728447510704,1.58371835,2447.4,2447.1,4.08636]
[1728447510904,0.4051,2447.5,2447.1,4.08636]
[1728447510905,0.85445124,2447.2,2447.1,4.08636]
[1728447511231,1.28167687,2447.2,2447.1,4.08636]
[1728447511435,0.85430563,2447.3,2447.2,4.0863]
[1728447512015,1.15946897,2447.3,2447.2,4.0863]
[1728447513435,0.30516334,2447.3,2447.2,4.0863]
[1728447513670,1.15946897,2447.3,2447.2,4.0863]
[1728447514504,0.61010678,2447.3,2447.2,4.0863]
[1728447514939,0.30494344,2447.3,2447.2,4.0863]
[1728447515234,1.15924907,2447.3,2447.2,4.0863]
[1728447515437,0.30494344,2447.3,2447.2,4.0863]
[1728447516105,0.30494344,2447.3,2447.2,7.1328887]
[1728447516437,0.85430563,2447.6,2447.5,4.0858]
[1728447516731,0.30494456,2447.6,2447.5,4.0858]
[1728447516928,0.30494456,2447.6,2447.4,9.90487935]
[1728447517145,0.30494456,2447.5,2447.4,14.02672822]
[1728447517431,0.30494456,2447.6,2447.5,4.0858]
[1728447517631,0.30496751,2447.6,2447.5,4.0858]
[1728447525968,0.30496751,2447.6,2447.4,5.20779887]
[1728447525969,1.55587314,2447.6,2447.4,5.20779887]
[1728447526135,0.30496751,2447.5,2447.4,4.08595]
[1728447528143,1.25090563,2447.6,2447.4,4.08595]
[1728447528646,0.3049582,2447.5,2447.4,4.08595]
[1728447529671,0.3049582,2447.5,2447.3,7.08613]
[1728447529876,0.3049582,2447.4,2447.3,3.0]
[1728447531328,0.85430563,2447.5,2447.3,3.0]
[1728447531673,0.30493752,2447.4,2447.3,3.0]
[1728447534884,0.85430563,2447.5,2447.3,3.0]
[1728447535047,0.30493426,2447.4,2447.3,7.08612]
[1728447538285,0.30497369,2447.4,2447.3,7.08612]
[1728447539548,0.30497369,2447.4,2447.3,4.08612]
[1728447539749,0.30497369,2447.4,2447.2,5.81916935]
[1728447539983,0.30497369,2447.3,2447.2,8.81916935]
[1728447540789,0.30497369,2447.3,2447.2,4.08619]
[1728447540974,0.3966,2447.2,2446.8,8.17372]
[1728447541161,0.3966,2447.2,2446.8,4.08685]
[1728447541162,0.8537752,2447.0,2446.8,4.08685]
[1728447541491,0.30497369,2446.9,2446.8,4.08685]
[1728447542775,0.30497369,2446.9,2446.6,5.68032]
[1728447542961,0.3047906,2446.8,2446.7,4.08709]
[1728447543675,0.8537752,2447.1,2446.7,4.08709]
[1728447543875,0.30474567,2446.8,2446.7,4.08709]
[1728447544096,0.30474567,2446.8,2446.7,5.39921385]
[1728447544267,0.30474567,2447.0,2446.9,4.0868]
[1728447544593,1.2503752,2447.2,2446.9,5.81977935]
[1728447544745,0.30474824,2447.1,2446.9,5.81977935]
[1728447544952,0.30474824,2447.0,2446.9,5.81977935]
[1728447548154,0.30474824,2447.0,2446.9,4.0868]
[1728447548598,0.30474824,2447.0,2446.7,7.1321432]
[1728447548901,0.30471165,2446.9,2446.7,5.82001935]
[1728447549192,0.30471082,2446.8,2446.7,4.08704]
[1728447549398,0.8537752,2447.1,2446.7,4.08704]
[1728447549708,0.30466463,2447.0,2446.7,4.08704]
[1728447549991,0.30466463,2446.9,2446.7,4.08704]
[1728447550205,0.8537752,2447.1,2446.8,4.08684]
[1728447550387,0.30466697,2447.0,2446.8,4.08684]
[1728447550587,1.2503752,2447.2,2446.8,4.08684]
[1728447550786,1.2503752,2447.2,2446.9,4.08669]
[1728447551175,0.30465366,2447.1,2446.9,4.08669]
[1728447551502,0.30465366,2447.0,2446.9,4.08669]
[1728447552871,0.30465366,2447.0,2446.9,5.19442682]
[1728447553093,0.8537752,2447.3,2447.1,4.08645]
[1728447553404,0.30466091,2447.2,2447.1,4.08645]
[1728447554104,0.30468609,2447.2,2447.1,4.08645]
[1728447554284,0.30468609,2447.2,2447.1,5.22975194]
[1728447555593,0.30468609,2447.2,2447.1,1.14330194]
[1728447557106,1.0992752,2447.4,2447.1,1.14330194]
[1728447557305,1.0992752,2447.4,2447.0,4.08652]
[1728447557306,0.30469439,2447.3,2447.0,4.08652]
[1728447557479,0.30469439,2447.2,2447.0,4.08652]
[1728447557677,1.0992752,2447.4,2447.0,4.08652]
[1728447557894,0.3046997,2447.3,2447.0,4.08652]
[1728447558093,0.3046997,2447.2,2447.0,4.08652]
[1728447558296,1.0992752,2447.4,2447.0,1.14330893]
[1728447558612,0.3046864,2447.3,2446.9,11.43324935]
[1728447558760,0.3046864,2447.2,2446.9,11.43324935]
[1728447558965,1.0992752,2447.4,2446.9,11.43324935]
[1728447559201,0.30469002,2447.3,2446.9,11.43324935]
[1728447559407,0.30469002,2447.2,2446.9,12.57657429]
[1728447559707,1.0992752,2447.4,2446.9,12.57657429]
[1728447559904,0.30468758,2447.3,2446.9,12.57657429]
[1728447560206,0.30468758,2447.2,2446.9,8.48988429]
[1728447560565,1.0992752,2447.4,2446.9,8.48988429]
[1728447561064,0.30468635,2447.3,2446.9,8.48988429]
[1728447561271,0.30468635,2447.2,2446.9,8.48988429]
[1728447561489,1.0992752,2447.4,2446.9,7.34651935]
[1728447562378,0.30472165,2447.3,2446.9,7.34651935]
[1728447562585,0.30472165,2447.2,2446.9,11.43322935]
[1728447562798,1.0992752,2447.4,2446.9,7.34651935]
[1728447563091,0.30473715,2447.3,2446.9,7.34651935]
[1728447563290,0.30473715,2447.2,2446.9,7.34651935]
[1728447563500,1.0992752,2447.4,2446.9,8.48988029]
[1728447563711,0.3047469,2447.3,2446.9,7.34651935]
[1728447563918,0.3047469,2447.2,2446.9,7.34651935]
[1728447564081,1.0992752,2447.4,2446.9,7.34651935]
[1728447564276,0.30475792,2447.3,2446.9,11.43322935]
[1728447564502,0.30475792,2447.2,2446.9,7.34651935]
[1728447564693,1.0992752,2447.4,2446.9,8.08117129]
[1728447564877,0.30476789,2447.3,2446.9,7.34651935]
[1728447565078,0.30476789,2447.2,2446.9,7.34651935]
[1728447565314,0.30476789,2447.1,2446.9,7.34651935]
[1728447565486,1.0992752,2447.4,2446.9,7.34651935]
[1728447565820,0.30478136,2447.3,2447.0,4.08662]
[1728447566114,0.30478136,2447.2,2447.0,4.08662]
[1728447566362,0.30478136,2447.1,2447.0,4.63662]
[1728447566516,0.30478136,2447.1,2447.0,5.83493394]
[1728447566816,0.30478136,2447.2,2447.0,5.83493394]
[1728447567028,1.0992752,2447.4,2447.0,5.83493394]
[1728447567029,0.8537752,2447.4,2447.1,5.81941935]
[1728447567479,0.3048412,2447.3,2447.1,5.81941935]
[1728447567893,0.3048412,2447.2,2447.1,5.81941935]
[1728447568093,0.3048412,2447.2,2447.1,7.13754668]
[1728447568511,1.1586164,2447.3,2447.1,7.13754668]
[1728447568831,0.3048412,2447.2,2447.1,7.13754668]
[1728447569493,0.3048412,2447.2,2447.1,3.05110668]
[1728447569693,0.3048412,2447.2,2447.1,1.73297935]
[1728447570125,0.3048412,2447.2,2447.0,0.55]
[1728447570324,0.3048412,2447.1,2447.0,0.55]
[1728447570529,0.8537752,2447.3,2447.0,0.55]
[1728447570745,0.30498155,2447.1,2447.0,0.55]
[1728447571047,0.30498155,2447.2,2447.0,0.55]
[1728447571343,0.30498155,2447.1,2447.0,0.55]
[1728447573745,0.8537752,2447.3,2447.0,4.63663]
[1728447573893,0.3051279,2447.1,2447.0,4.63663]
[1728447574093,0.3051279,2447.1,2447.0,5.83494494]
[1728447575441,0.3051279,2447.1,2447.0,1.74831494]
[1728447575653,0.3051279,2447.1,2447.0,0.55]
[1728447577146,0.8537752,2447.2,2447.0,0.55]
[1728447577648,0.30522776,2447.1,2447.0,0.55]
[1728447584535,1.15900296,2447.1,2447.0,0.55]
[1728447586679,1.15900296,2447.1,2447.0,4.63663]
[1728447586872,1.15900296,2447.1,2447.0,5.661647]
[1728447587575,1.15916074,2447.1,2447.0,5.661647]
[1728447589689,1.15916074,2447.1,2447.0,1.575017]
[1728447589865,1.15916074,2447.1,2447.0,5.661647]
[1728447590791,0.8537752,2447.1,2447.0,5.661647]
[1728447591565,1.15925202,2447.1,2447.0,5.661647]
[1728447594092,0.8537752,2447.1,2447.0,5.661647]
[1728447594298,0.30552643,2447.1,2447.0,5.661647]
[1728447594589,1.16099957,2447.1,2447.0,5.661647]
[1728447595297,0.30552643,2447.1,2447.0,4.63663]
[1728447595804,1.16115257,2447.1,2447.0,4.63663]
[1728447596300,0.30552643,2447.1,2447.0,4.63663]
[1728447596888,1.58618924,2447.1,2447.0,4.63663]
[1728447597477,1.28066281,2447.1,2447.0,4.63663]
[1728447597684,1.58630981,2447.1,2447.0,4.63663]
[1728447598467,1.58630981,2447.1,2447.0,0.55]
[1728447599903,1.72104406,2447.1,2446.8,0.55]
[1728447600057,0.85587576,2446.9,2446.8,0.55]
[1728447600297,1.16152276,2446.9,2446.8,0.55]
[1728447600829,1.16153826,2446.9,2446.8,0.55]
[1728447601994,1.16153826,2446.9,2446.8,4.63697]
[1728447602206,0.3056625,2446.9,2446.8,4.63697]
[1728447602426,0.3056625,2446.9,2446.8,5.82931894]
[1728447602627,0.3056625,2446.9,2446.8,7.38261894]